Workbook

Sheet 심의안건
A1: 2018년도 제8회 예천군 보조금심의위원회 대상자선정심의 조서
K2: (단위 : 천원)
A3: 부서명 | B3: 보 조 사 업 자 | C3: 보 조 사 업 명 | D3: 과목명 | E3: 사 업 내 용 | F3: 2016년 지원액 | G3: 계 | H3: 보조금 | I3: 자부담 | J3: 1차(해당부서) | K3: 2차(예산부서) | L3: 3차(위원회)
B4: 계 | C4: =SUBTOTAL(103,C5:C20)&"건" -> 12건 | G4: =G5+G7+G9+G16 -> 105,160 | H4: =H5+H7+H9+H16 -> 49,406 | I4: =I5+I7+I9+I16 -> 55,754 | J4: 49,406 | K4: 49,406 | L4: 49,406
A5: 새마을경제과 소계 | C5: =SUBTOTAL(103,C6) -> 1 | F5: =SUBTOTAL(9,F6:F9) -> 375,600 | G5: =SUBTOTAL(9,G6) -> 8,040 | H5: =SUBTOTAL(9,H6) -> 5,226 | I5: 2,814 | J5: 5,226 | K5: 5,226 | L5: 5,226
A6: 새마을경제과 | B6: 예천읍 밤나무골길 33 동신그린타운 101동 401호 신상대 외 5명(대상자 내역 별지) | C6: 미니태양광 보급지원사업 | D6: 민간자본사업보조 (이전재원) | E6: 미니태양광 보급지원사업 6개소 | G6: 8,040 | H6: 5,226 | I6: 2,814 | J6: 5,226 | K6: 5,226 | L6: 5,226
A7: 환경관리과 소계 | C7: =SUBTOTAL(103,C8) -> 1 | F7: =SUBTOTAL(9,F8:F19) -> 751,200 | G7: =SUBTOTAL(9,G8) -> 45,000 | H7: =SUBTOTAL(9,H8) -> 18,000 | I7: 27,000 | J7: 18,000 | K7: 18,000 | L7: 18,000
A8: 환경관리과 | B8: 풍양면 덕암로 1124-28 이순선 | C8: 예천군 전기자동차 민간보급사업 | D8: 민간자본사업보조 | E8: 45,000천원 * 1식 * 40% | G8: =H8+I8 -> 45,000 | H8: 18,000 | I8: 27,000 | J8: 18,000 | K8: 18,000 | L8: 18,000
A9: 농정과 소계 | C9: =SUBTOTAL(103,C10:C15) -> 6 | F9: 375,600 | G9: =SUM(G10:G15) -> 44,800 | H9: =SUM(H10:H15) -> 22,400 | I9: 22,400 | J9: 22,400 | K9: 22,400 | L9: 22,400
A10: 농정과 | B10: 감천면 석송로332-15 장규동 외 7명 (대상자 내역 별지) | C10: 중소형농기계 지원 | D10: 민간자본사업보조 | E10: 2,000천원 * 8대 * 50% | F10: 375,600 | G10: 16,000 | H10: 8,000 | I10: 8,000 | J10: 8,000 | K10: 8,000 | L10: 8,000
A11: 농정과 | B11: 호명면 원곡길 131-9 장원덕 | C11: 소득작목육성지원사업 (장기성PO필름) | D11: 민간자본사업보조 | E11: 4천원 * 1,500㎡ * 50% | F11: 0 | G11: 6,000 | H11: 3,000 | I11: 3,000 | J11: 3,000 | K11: 3,000 | L11: 3,000
A12: 농정과 | B12: 예천읍 용산길 124-1 황금훈 | C12: 소득작목육성지원사업 (이동식저온저장고) | D12: 민간자본사업보조 | E12: 6,000천원 * 1동 * 50% | G12: 6,000 | H12: 3,000 | I12: 3,000 | J12: 3,000 | K12: 3,000 | L12: 3,000
A13: 농정과 | B13: 예천읍 효자로 159-16 김두석 | C13: 원예산업육성지원사업 (이동식저온저장고) | D13: 민간자본사업보조 | E13: 6,000천원 * 1동 * 50% | G13: 6,000 | H13: 3,000 | I13: 3,000 | J13: 3,000 | K13: 3,000 | L13: 3,000
A14: 농정과 | B14: 개포면 송담길 42-15 김동한 | C14: 원예산업육성지원사업 (점적관수사업) | D14: 민간자본사업보조 | E14: 1천원 * 800㎡ * 50% | F14: 0 | G14: 800 | H14: 400 | I14: 400 | J14: 400 | K14: 400 | L14: 400
A15: 농정과 | B15: 예천아로니아협동조합 조병렬 | C15: 우수 농특산물 포장재 개선 지원 | D15: 민간자본사업보조 | E15: 아로니아 포장박스 제작 (2.5천원 * 4,000매 * 50%) | G15: 10,000 | H15: 5,000 | I15: 5,000 | J15: 5,000 | K15: 5,000 | L15: 5,000
A16: 산림축산과 소계 | C16: =SUBTOTAL(103,C17:C20) -> 4 | F16: =SUBTOTAL(9,F17:F25) -> 0 | G16: =SUBTOTAL(9,G17:G20) -> 7,320 | H16: =SUBTOTAL(9,H17:H20) -> 3,780 | I16: 3,540 | J16: 3,780 | K16: 3,780 | L16: 3,780
A17: 산림축산과 | B17: 예천읍 한천길 37-10 변병현 | C17: 면역강화용사료첨가제 지원사업 | D17: 민간자본사업보조 | E17: 300천원 * 1식 * 70% | G17: =SUM(H17:I17) -> 300 | H17: 210 | I17: 90 | J17: 210 | K17: 210 | L17: 210
A18: 산림축산과 | B18: 예천읍 양궁로 14 윤홍식 | C18: 어린송아지용양질조사료 지원사업 | D18: 민간자본사업보조 | E18: 1,440천원 * 1식 * 30% | G18: =SUM(H18:I18) -> 1,440 | H18: 432 | I18: 1,008 | J18: 432 | K18: 432 | L18: 432
A19: 산림축산과 | B19: 용궁면 용궁로 143 윤우상 외 1명 (대상자 내역 별지) | C19: 깨끗한 축산환경 지원 (파리구제제 구입지원) | D19: 민간자본사업보조 | E19: 12천원 * 145포 * 70% | G19: =12*145 -> 1,740 | H19: =G19*0.7 -> 1,218 | I19: =G19*0.3 -> 522 | J19: 1,218 | K19: 1,218 | L19: 1,218
A20: 산림축산과 | B20: 예천읍 왕신1리길 85-5 김홍륵 외 3명 (대상자 내역 별지) | C20: 축산분뇨처리용 톱밥지원 | D20: 민간자본사업보조 | E20: 3천원 * 1,280포 * 50% | G20: =3*1280 -> 3,840 | H20: =G20*0.5 -> 1,920 | I20: =G20*0.5 -> 1,920 | J20: 1,920 | K20: 1,920 | L20: 1,920

Sheet 대상자별지내역
A1: 2018년도 제8회 예천군 보조금심의위원회 대상자내역 별지 조서
L2: (단위 : 천원)
A3: 부서명 | B3: 보 조 사 업 자 | D3: 보 조 사 업 명 | E3: 과목명 | F3: 사 업 내 용 | G3: 2017년 지원액 | H3: 계 | I3: 보조금 | J3: 자부담 | K3: 1차(해당부서) | L3: 2차(예산부서) | M3: 3차(위원회)
B4: 주소 | C4: 성명
A5: 소계 | D5: =SUBTOTAL(103,D6:D11) -> 6 | G5: =SUBTOTAL(9,G6:G26) -> 0 | H5: =SUM(H6:H11) -> 8,040 | I5: =SUM(I6:I11) -> 5,226 | J5: =SUM(J6:J11) -> 2,814 | K5: =SUM(K6:K11) -> 5,226 | L5: =SUM(L6:L11) -> 5,226 | M5: 5,226
A6: 새마을경제과 | B6: 예천읍 밤나무골길 33 동신그린타운 101동 401호 | C6: 신상대 | D6: 미니태양광 보급지원사업 | E6: 민간자본사업보조 (이전재원) | F6: 미니태양광 1식 : 1,608천원 (설치용량 : 500W) | H6: =SUM(I6:J6) -> 1,608 | I6: 1,005 | J6: 603 | K6: 1,005 | L6: 1,005 | M6: 1,005
A7: 새마을경제과 | B7: 예천읍 밤나무골길 33 동신그린타운 101동 202호 | C7: 김홍국 | D7: 미니태양광 보급지원사업 | E7: 민간자본사업보조 (이전재원) | F7: 미니태양광 1식 : 1,608천원 (설치용량 : 500W) | H7: 1,608 | I7: 1,005 | J7: 603 | K7: 1,005 | L7: 1,005 | M7: 1,005
A8: 새마을경제과 | B8: 예천읍 밤나무골길 33 동신그린타운 101동 302호 | C8: 조승태 | D8: 미니태양광 보급지원사업 | E8: 민간자본사업보조 (이전재원) | F8: 미니태양광 1식 : 804천원 (설치용량 : 300W) | H8: 804 | I8: 603 | J8: 201 | K8: 603 | L8: 603 | M8: 603
A9: 새마을경제과 | B9: 예천읍 밤나무골길 33 동신그린타운 101동 104호 | C9: 이재호 | D9: 미니태양광 보급지원사업 | E9: 민간자본사업보조 (이전재원) | F9: 미니태양광 1식 : 1,608천원 (설치용량 : 500W) | H9: 1,608 | I9: 1,005 | J9: 603 | K9: 1,005 | L9: 1,005 | M9: 1,005
A10: 새마을경제과 | B10: 예천읍 밤나무골길 33 동신그린타운 101동 402호 | C10: 강성목 | D10: 미니태양광 보급지원사업 | E10: 민간자본사업보조 (이전재원) | F10: 미니태양광 1식 : 1,608천원 (설치용량 : 500W) | H10: 1,608 | I10: 1,005 | J10: 603 | K10: 1,005 | L10: 1,005 | M10: 1,005
A11: 새마을경제과 | B11: 예천읍 대심1길57-6 | C11: 김승년 | D11: 미니태양광 보급지원사업 | E11: 민간자본사업보조 (이전재원) | F11: 미니태양광 1식 : 804천원 (설치용량 : 300W) | H11: 804 | I11: 603 | J11: 201 | K11: 603 | L11: 603 | M11: 603
A12: 소계 | D12: =SUBTOTAL(103,D13:D20) -> 8 | H12: =SUM(H13:H20) -> 16,000 | I12: =SUM(I13:I20) -> 8,000 | J12: =SUM(J13:J20) -> 8,000 | K12: 8,000 | L12: 8,000 | M12: 8,000
A13: 농정과 | B13: 감천면 석송로 332-15 | C13: 장규동 | D13: 중소형농기계 지원사업 | E13: 민간자본사업보조 | F13: 2,000,000원 * 1대 * 50% | H13: 2,000 | I13: 1,000 | J13: 1,000 | K13: 1,000 | L13: 1,000 | M13: 1,000
A14: 농정과 | B14: 유천면 유용로 307 | C14: 박구상 | D14: 중소형농기계 지원사업 | E14: 민간자본사업보조 | F14: 2,000,000원 * 1대 * 50% | H14: 2,000 | I14: 1,000 | J14: 1,000 | K14: 1,000 | L14: 1,000 | M14: 1,000
A15: 농정과 | B15: 풍양면 청운길 116 | C15: 권오근 | D15: 중소형농기계 지원사업 | E15: 민간자본사업보조 | F15: 2,000,000원 * 1대 * 50% | H15: 2,000 | I15: 1,000 | J15: 1,000 | K15: 1,000 | L15: 1,000 | M15: 1,000
A16: 농정과 | B16: 개포면 용개로 1091-3 | C16: 윤용식 | D16: 중소형농기계 지원사업 | E16: 민간자본사업보조 | F16: 2,000,000원 * 1대 * 50% | H16: 2,000 | I16: 1,000 | J16: 1,000 | K16: 1,000 | L16: 1,000 | M16: 1,000
A17: 농정과 | B17: 개포면 동소리길 202-218 | C17: 황종인 | D17: 중소형농기계 지원사업 | E17: 민간자본사업보조 | F17: 2,000,000원 * 1대 * 50% | H17: 2,000 | I17: 1,000 | J17: 1,000 | K17: 1,000 | L17: 1,000 | M17: 1,000
A18: 농정과 | B18: 개포면 우감2길 20 | C18: 고대곤 | D18: 중소형농기계 지원사업 | E18: 민간자본사업보조 | F18: 2,000,000원 * 1대 * 50% | H18: 2,000 | I18: 1,000 | J18: 1,000 | K18: 1,000 | L18: 1,000 | M18: 1,000
A19: 농정과 | B19: 개포면 송담길 38 | C19: 최진규 | D19: 중소형농기계 지원사업 | E19: 민간자본사업보조 | F19: 2,000,000원 * 1대 * 50% | H19: 2,000 | I19: 1,000 | J19: 1,000 | K19: 1,000 | L19: 1,000 | M19: 1,000
A20: 농정과 | B20: 개포면 황산1길 126-8 | C20: 유명희 | D20: 중소형농기계 지원사업 | E20: 민간자본사업보조 | F20: 2,000,000원 * 1대 * 50% | H20: 2,000 | I20: 1,000 | J20: 1,000 | K20: 1,000 | L20: 1,000 | M20: 1,000
A21: 소계 | D21: =SUBTOTAL(103,D22:D27) -> 6 | H21: =SUBTOTAL(9,H22:H27) -> 5,580 | I21: =SUBTOTAL(9,I22:I27) -> 3,138 | J21: 2,442 | K21: 3,138 | L21: 3,138 | M21: 3,138
A22: 산림축산과 | B22: 용궁면 용궁로 143 | C22: 윤우상 | D22: 깨끗한 축산환경 지원 (파리구제제 구입지원) | E22: 민간자본사업보조 | F22: 12천원 * 70포 * 70% | H22: =12*70 -> 840 | I22: =H22*0.7 -> 588 | J22: =H22*0.3 -> 252 | K22: =I22 -> 588 | L22: 588 | M22: 588
A23: 산림축산과 | B23: 효자면 보리밭길 17-25 | C23: 박수환 | D23: 깨끗한 축산환경 지원 (파리구제제 구입지원) | E23: 민간자본사업보조 | F23: 12천원 * 75포 * 70% | H23: =12*75 -> 900 | I23: =H23*0.7 -> 630 | J23: =H23*0.3 -> 270 | K23: 630 | L23: 630 | M23: 630
A24: 산림축산과 | B24: 예천읍 왕신1리길 85-5 | C24: 김홍륵 | D24: 축산분뇨처리용 톱밥지원 | E24: 민간자본사업보조 | F24: 3천원 * 300포 * 50% | H24: =3*300 -> 900 | I24: =H24*0.5 -> 450 | J24: =H24*0.5 -> 450 | K24: 450 | L24: 450 | M24: 450
A25: 산림축산과 | B25: 유천면 광전2길 49 | C25: 황덕분 | D25: 축산분뇨처리용 톱밥지원 | E25: 민간자본사업보조 | F25: 3천원 * 530포 * 50% | H25: =3*530 -> 1,590 | I25: =H25*0.5 -> 795 | J25: =H25*0.5 -> 795 | K25: 795 | L25: 795 | M25: 795
A26: 산림축산과 | B26: 유천면 마천길 125 | C26: 심창용 | D26: 축산분뇨처리용 톱밥지원 | E26: 민간자본사업보조 | F26: 3천원 * 380포 * 50% | H26: =380*3 -> 1,140 | I26: =H26*0.5 -> 570 | J26: =H26*0.5 -> 570 | K26: 570 | L26: 570 | M26: 570
A27: 산림축산과 | B27: 지보면 소화2길 105-31 | C27: 강수원 | D27: 축산분뇨처리용 톱밥지원 | E27: 민간자본사업보조 | F27: 3천원 * 70포 * 50% | H27: =3*70 -> 210 | I27: =H27*0.5 -> 105 | J27: =H27*0.5 -> 105 | K27: 105 | L27: 105 | M27: 105
